bitfinex/quotes_SOLUSD_20241111
["timestamp","ask_amount","ask_price","bid_price","bid_amount"]
[1731286599054,14.83817118,210.26,210.18,4.7578]
[1731286599369,14.83817118,210.2,210.17,11.8947]
[1731286599533,14.83817118,210.18,210.13,4.7588]
[1731286599736,14.83817118,210.17,210.13,4.7588]
[1731286599936,14.83817118,210.15,210.11,4.7593]
[1731286600137,14.83817118,210.14,210.06,20.93207118]
[1731286600357,14.83817118,210.12,210.08,11.9001]
[1731286600952,23.91640347,210.12,210.08,11.9001]
[1731286602058,23.91640347,210.14,210.08,11.9001]
[1731286602260,23.91640347,210.13,210.12,4.64331381]
[1731286602458,23.91640347,210.13,210.08,11.9001]
[1731286602953,4.7576,210.19,210.08,11.9001]
[1731286602954,23.91640347,210.11,210.08,11.9001]
[1731286603160,23.91640347,210.12,210.08,11.9001]
[1731286604040,23.91640347,210.1,210.06,6.0939]
[1731286604275,23.91640347,210.07,210.04,20.0]
[1731286604440,4.7586,210.15,209.97,11.9059]
[1731286604645,4.7586,210.15,209.94,22.0689]
[1731286604646,47.69328747,210.1,210.09,4.65908996]
[1731286604865,23.776884,210.09,210.08,4.65908996]
[1731286605562,28.536784,210.09,210.0,4.65908996]
[1731286605741,28.536784,210.09,210.01,4.65908996]
[1731286605947,23.91640347,210.06,210.01,4.65908996]
[1731286606152,23.91640347,210.06,210.0,4.65908996]
[1731286606351,23.91640347,210.06,210.01,4.65908996]
[1731286606548,23.91640347,210.02,210.0,4.65908996]
[1731286606755,23.91640347,210.03,210.0,4.65908996]
[1731286606959,23.91640347,210.04,210.0,4.65908996]
[1731286607852,23.91640347,210.03,210.0,4.65908996]
[1731286608276,23.91640347,210.03,210.01,4.65908996]
[1731286608953,23.91640347,210.03,209.98,16.668]
[1731286609264,23.776884,210.02,210.01,4.66814163]
[1731286610055,23.91640347,210.02,209.98,16.668]
[1731286610448,47.69328747,210.03,209.98,16.668]
[1731286611652,23.776884,210.03,209.98,11.9058]
[1731286612955,23.776884,210.03,209.96,28.67900347]
[1731286613270,23.776884,210.03,209.96,40.58600347]
[1731286614270,23.91640347,210.0,209.96,16.6696]
[1731286614476,23.776884,210.02,209.98,4.7623]
[1731286615156,23.776884,210.04,209.98,4.7623]
[1731286615564,23.91640347,210.04,209.98,4.7623]
[1731286615771,23.776884,210.03,209.98,4.7623]
[1731286616475,23.776884,210.03,209.97,23.91640347]
[1731286618164,23.776884,210.05,210.0,23.91640347]
[1731286620457,23.776884,210.05,210.01,23.91640347]
[1731286620659,23.53182967,210.25,209.96,11.907]
[1731286620660,23.776884,210.07,210.04,23.91640347]
[1731286620863,23.776884,210.07,210.06,14.94732992]
[1731286621370,23.776884,210.07,210.05,14.94732992]
[1731286621870,14.94732992,210.12,210.05,14.94732992]
[1731286622074,14.94732992,210.11,209.97,20.0]
[1731286622457,4.7589,210.13,210.08,14.94732992]
[1731286622769,4.7589,210.13,210.09,14.94732992]
[1731286622983,14.94732992,210.18,210.11,14.94732992]
[1731286623172,14.94732992,210.18,210.05,11.9019]
[1731286623173,14.94732992,210.14,210.05,11.9019]
[1731286623360,14.94732992,210.13,210.06,14.94732992]
[1731286624162,23.776884,210.12,210.06,14.94732992]
[1731286624367,38.72421392,210.12,210.05,14.94732992]
[1731286624574,23.776884,210.1,210.06,14.94732992]
[1731286624984,23.776884,210.1,210.01,16.6657]
[1731286624985,23.776884,210.1,210.04,14.94732992]
[1731286625171,23.776884,210.1,210.05,14.94732992]
[1731286625888,159.8,210.17,210.09,14.94732992]
[1731286626066,9.70096737,210.19,210.15,14.94732992]
[1731286626067,159.8,210.16,210.15,14.94732992]
[1731286626382,159.8,210.18,210.12,14.94732992]
[1731286626580,14.94732992,210.17,210.09,14.94732992]
[1731286626767,159.8,210.16,210.11,14.94732992]
[1731286627083,159.8,210.16,210.12,14.94732992]
[1731286627258,159.8,210.16,210.11,14.94732992]
[1731286627460,14.94732992,210.14,210.06,14.94732992]
[1731286627962,23.776884,210.14,210.08,14.94732992]
[1731286628167,38.72421392,210.14,210.06,14.94732992]
[1731286628776,14.94732992,210.11,210.04,14.94732992]
[1731286628957,23.776884,210.09,210.04,14.94732992]
[1731286629675,43.48411392,210.09,210.02,26.85062992]
[1731286629883,43.48411392,210.09,210.02,31.61202992]
[1731286630087,43.48411392,210.09,210.0,25.87872992]
[1731286630378,23.776884,210.06,210.0,19.70902992]
[1731286630580,159.8,210.05,210.0,19.70902992]
[1731286630781,23.776884,210.04,210.0,19.70902992]
[1731286631188,23.776884,210.06,210.0,19.70902992]
[1731286632686,23.776884,210.06,209.99,14.94732992]
[1731286633481,38.72421392,210.06,209.99,14.94732992]
[1731286634777,38.72421392,210.06,209.99,19.70932992]
[1731286636276,38.72421392,210.06,209.98,14.94732992]
[1731286636469,23.776884,210.04,209.98,14.94732992]
[1731286637584,23.776884,210.04,209.97,11.9061]
[1731286637585,23.776884,210.02,209.97,11.9061]
[1731286637787,23.776884,210.02,209.97,16.6686]
[1731286638288,14.94732992,210.03,209.9,15.5375]
[1731286638289,14.94732992,210.01,209.94,14.94732992]
[1731286638488,38.72421392,210.0,209.93,14.94732992]
[1731286638673,23.776884,210.0,209.94,14.94732992]
[1731286638878,23.776884,210.0,209.92,16.6729]
[1731286638879,38.72421392,209.98,209.92,16.6729]
[1731286639076,23.776884,209.97,209.92,16.6729]
[1731286639269,23.776884,209.97,209.92,11.9092]
[1731286639674,23.776884,209.98,209.92,31.62022992]
[1731286640089,38.72421392,209.98,209.92,16.6729]
[1731286640683,23.776884,209.96,209.92,11.9092]
[1731286640885,38.72421392,209.96,209.9,4.764]
[1731286641367,14.94732992,209.93,209.88,4.7645]
[1731286641772,23.776884,209.92,209.88,4.7645]
[1731286642188,23.776884,209.93,209.88,4.7645]
[1731286642888,38.72421392,209.93,209.87,11.9117]
[1731286643198,38.72421392,209.93,209.87,16.6765]
[1731286643492,23.776884,209.93,209.9,14.94732992]
[1731286643677,2.59535837,210.02,209.92,14.94732992]
[1731286643678,35.57522992,209.99,209.92,14.94732992]
[1731286644074,40.51947674,209.99,209.92,14.94732992]
[1731286644276,14.94732992,209.98,209.91,14.94732992]
[1731286644597,20.80984682,209.99,209.94,14.94732992]
[1731286644774,15.8656,209.99,209.94,14.94732992]
[1731286645093,15.8656,209.99,209.93,4.7632]
[1731286646179,38.72421392,209.98,209.92,11.909]
[1731286646996,23.776884,209.98,209.92,11.909]
[1731286647201,23.776884,209.98,209.92,26.85632992]
[1731286647492,38.72421392,209.98,209.92,16.6727]
[1731286647872,23.776884,209.98,209.92,31.62002992]
[1731286648697,15.0505,210.04,209.96,14.94732992]
[1731286648884,14.94732992,210.03,209.96,14.94732992]
[1731286649094,14.94732992,210.03,209.95,14.94732992]
[1731286649888,14.94732992,210.02,209.95,14.94732992]
[1731286650093,23.776884,210.01,209.96,19.71012992]
[1731286650305,23.776884,210.02,209.96,19.71012992]
[1731286650483,15.0505,210.04,210.0,14.94732992]
[1731286650799,14.94732992,210.06,209.99,14.94732992]
[1731286650977,14.94732992,210.05,209.98,14.94732992]
[1731286651294,14.94732992,210.06,209.99,14.94732992]
[1731286651494,19.70762992,210.07,210.0,14.94732992]
[1731286651792,28.537484,210.06,210.0,14.94732992]
[1731286653096,43.48481392,210.06,209.99,14.94732992]
[1731286653304,14.94732992,210.05,209.98,14.94732992]
[1731286653486,14.94732992,210.03,209.96,14.94732992]
[1731286653687,28.537484,210.06,209.91,16.6737]
[1731286653688,23.776884,209.99,209.92,14.94732992]
[1731286654076,23.776884,209.99,209.93,14.94732992]
[1731286654881,23.776884,209.97,209.91,31.62092992]
[1731286655387,23.776884,209.97,209.92,14.94732992]
[1731286655589,23.776884,209.98,209.91,31.62092992]
[1731286655905,23.776884,209.98,209.92,14.94732992]
[1731286656980,14.94732992,209.97,209.91,16.6736]
[1731286657291,23.776884,209.96,209.91,16.6736]
[1731286657488,23.776884,209.96,209.89,19.71162992]
[1731286657999,23.776884,209.96,209.9,14.94732992]
[1731286658504,14.94732992,209.95,209.89,4.7643]
[1731286658694,23.776884,209.94,209.89,4.7643]
[1731286659185,14.94732992,210.0,209.92,14.94732992]
[1731286659795,20.0935,210.04,209.92,14.94732992]
[1731286659796,14.94732992,209.98,209.92,14.94732992]
[1731286660188,4.7622,209.99,209.92,19.71102992]
[1731286660393,23.776884,209.98,209.92,19.71102992]
[1731286660583,23.776884,209.98,209.92,14.94732992]
[1731286660779,23.776884,209.98,209.92,19.71092992]
[1731286661483,23.776884,209.98,209.92,14.94732992]
[1731286661687,23.776884,209.98,209.92,19.71092992]
[1731286661883,14.94732992,210.0,209.92,19.71092992]
[1731286662090,14.94732992,210.0,209.92,31.62012992]
[1731286662299,19.70932992,210.0,209.92,11.9092]
[1731286662885,19.70932992,210.0,209.92,16.6729]
[1731286663280,23.776884,209.99,209.92,16.6729]
[1731286663903,23.776884,209.99,209.92,31.62022992]
[1731286664593,14.94732992,210.0,209.92,31.62022992]
[1731286664898,19.70922992,210.0,209.92,31.62022992]
[1731286665098,14.94732992,209.98,209.92,16.6729]
[1731286665901,23.776884,209.97,209.92,16.6729]
[1731286667182,14.94732992,209.96,209.9,4.7639]
[1731286667404,23.776884,209.95,209.9,4.7639]
[1731286667787,38.724214,209.95,209.9,4.7639]
[1731286668183,23.776884,209.96,209.9,19.71122992]
[1731286668591,38.72421392,209.96,209.88,14.94732992]
[1731286668783,43.48701392,209.96,209.88,14.94732992]
[1731286670307,38.72421392,209.96,209.88,14.94732992]
[1731286670507,23.776884,209.94,209.88,19.71172992]
[1731286670803,19.71022992,209.96,209.88,19.71172992]
[1731286670804,23.776884,209.95,209.88,4.7644]
[1731286671385,23.776884,209.95,209.88,16.6759]
[1731286671588,28.539884,209.95,209.88,16.6759]
[1731286671904,14.94732992,209.94,209.88,16.6759]
[1731286672087,23.776884,209.93,209.88,16.6759]
[1731286672598,23.776884,209.95,209.88,16.6759]
[1731286673101,23.776884,209.97,209.91,14.94732992]
[1731286674109,23.776884,209.97,209.91,19.71102992]
[1731286674408,23.776884,209.97,209.91,4.7637]
[1731286674589,23.776884,209.95,209.89,4.7643]
[1731286674913,23.776884,209.95,209.89,19.71162992]
[1731286676290,23.776884,209.95,209.91,14.94732992]
[1731286676495,23.776884,209.97,209.91,14.94732992]
[1731286677396,23.776884,209.99,209.93,14.94732992]
[1731286678109,23.776884,209.99,209.86,0.1]
[1731286678110,23.776884,209.97,209.91,14.94732992]
[1731286678891,23.776884,209.95,209.9,11.9104]
[1731286680206,23.776884,209.95,209.9,16.6745]
[1731286680697,23.776884,209.97,209.91,14.94732992]
[1731286680897,23.776884,209.97,209.9,16.6745]
[1731286681716,23.776884,209.95,209.9,16.6745]
[1731286682221,23.776884,209.97,209.9,16.6745]
[1731286682392,23.776884,209.97,209.91,14.94732992]
[1731286682726,14.94732992,210.01,209.93,14.94732992]
[1731286683595,14.94732992,210.01,209.94,4.7632]
[1731286683795,23.776884,210.01,209.94,4.7632]
[1731286683996,38.72421392,210.01,209.94,16.6713]
[1731286685295,23.776884,210.01,209.95,14.94732992]
[1731286685496,179.50752992,210.08,209.99,14.94732992]
[1731286685707,14.94732992,210.06,209.99,14.94732992]
[1731286685912,14.94732992,210.04,209.97,14.94732992]
[1731286686093,14.94732992,210.03,209.96,14.94732992]
[1731286686512,14.94732992,210.03,209.95,21.02742992]
[1731286686704,14.94732992,210.03,209.96,4.7628]
[1731286686909,174.74732992,210.06,209.99,14.94732992]
[1731286687125,159.8,210.06,210.0,14.94732992]
[1731286687621,159.8,210.06,209.99,14.94732992]
[1731286688322,159.8,210.06,210.0,14.94732992]
[1731286688518,159.8,210.06,209.99,14.94732992]
[1731286689109,23.776884,210.05,210.0,4.7619]
[1731286689311,23.776884,210.05,210.0,19.70922992]
[1731286689514,23.776884,210.05,210.01,14.94732992]
[1731286689822,23.776884,210.06,210.01,14.94732992]
[1731286690010,23.776884,210.06,210.02,14.94732992]
[1731286690217,159.8,210.07,210.03,14.94732992]
[1731286690405,159.8,210.07,210.05,14.94732992]
[1731286691209,159.8,210.07,210.04,14.94732992]
[1731286691414,159.8,210.11,210.06,14.94732992]
[1731286691711,38.72421392,210.12,210.05,14.94732992]
[1731286692225,19.70652992,210.12,210.04,19.70822992]
[1731286692629,14.94732992,210.11,210.04,19.70822992]
[1731286692815,14.94732992,210.1,210.03,26.85032992]
[1731286693134,14.94732992,210.07,210.01,4.7616]
[1731286693813,159.8,210.08,210.0,14.94732992]
[1731286693814,159.8,210.08,210.03,14.94732992]
[1731286694014,23.776884,210.07,210.03,14.94732992]
[1731286694429,159.8,210.08,210.05,14.94732992]
[1731286695025,159.8,210.08,210.06,14.94732992]
[1731286695234,159.8,210.12,210.06,14.94732992]
[1731286695413,159.8,210.12,210.07,14.94732992]
[1731286695618,159.8,210.12,210.06,14.94732992]
[1731286696731,23.776884,210.11,210.07,14.94732992]
[1731286697125,159.8,210.12,210.07,14.94732992]
[1731286697435,14.94732992,210.21,210.06,16.6616]
[1731286697436,23.776884,210.16,210.1,14.94732992]
[1731286697625,4.758,210.18,210.12,14.94732992]
[1731286697936,19.70532992,210.18,210.11,14.94732992]
[1731286698230,19.70532992,210.18,210.1,14.94732992]
[1731286698433,19.70532992,210.18,210.11,14.94732992]
[1731286698638,19.70532992,210.18,210.11,19.70662992]
[1731286699114,23.776884,210.17,210.11,19.70662992]
[1731286701832,23.776884,210.19,210.12,14.94732992]
[1731286702013,23.776884,210.19,210.13,14.94732992]
[1731286702219,4.7575,210.2,210.15,14.94732992]
[1731286702416,159.8,210.23,210.19,14.94732992]
[1731286702628,159.8,210.23,210.2,14.94732992]
[1731286702827,169.89440314,210.29,210.22,14.94732992]
[1731286703030,169.89440314,210.29,210.15,6.2518]
[1731286703031,159.8,210.28,210.24,14.94732992]
[1731286703230,10.09440314,210.29,210.15,6.3518]
[1731286703231,10.09440314,210.29,210.27,14.94732992]
[1731286703531,10.09440314,210.29,210.28,14.94732992]
[1731286704323,10.09440314,210.29,210.27,19.70302992]
[1731286704536,10.09440314,210.29,210.28,14.94732992]
[1731286705940,10.09440314,210.29,210.27,14.94732992]
[1731286706633,10.09440314,210.29,210.26,14.94732992]
[1731286707729,10.09440314,210.29,210.25,18.142]
[1731286707930,23.776884,210.28,210.22,14.94732992]
[1731286708138,23.776884,210.28,210.21,19.70432992]
[1731286709238,23.776884,210.28,210.22,14.94732992]
[1731286709636,38.72421392,210.26,210.21,11.8928]
[1731286709841,38.72421392,210.25,210.21,11.8928]
[1731286710229,23.776884,210.25,210.21,11.8928]
[1731286712620,159.8,210.27,210.21,11.8928]
[1731286712845,159.8,210.34,210.26,14.94732992]
[1731286713035,159.8,210.35,210.28,14.94732992]
[1731286713945,23.776884,210.34,210.28,14.94732992]
[1731286714544,23.776884,210.34,210.28,19.70272992]
[1731286714735,183.576884,210.34,210.28,19.70272992]
[1731286715340,183.576884,210.34,210.28,14.94732992]
[1731286715726,183.576884,210.34,210.3,14.94732992]
[1731286715945,159.8,210.36,210.3,14.94732992]
[1731286716853,159.8,210.36,210.32,14.94732992]
[1731286717147,159.8,210.4,210.32,14.94732992]
[1731286717356,159.8,210.4,210.34,14.94732992]
[1731286717541,159.8,210.39,210.34,14.94732992]
[1731286717732,159.8,210.39,210.31,16.642]
[1731286717733,159.8,210.39,210.36,14.94732992]
[1731286717930,159.8,210.39,210.34,14.94732992]
[1731286718130,159.8,210.39,210.32,14.94732992]
[1731286718534,174.74732992,210.39,210.32,14.94732992]
[1731286718732,159.8,210.39,210.32,14.94732992]
[1731286718934,159.8,210.39,210.32,19.70172992]
[1731286719433,23.776884,210.38,210.32,14.94732992]
[1731286719742,23.776884,210.38,210.32,19.70182992]
[1731286720736,183.576884,210.38,210.32,19.70182992]
[1731286721628,183.576884,210.38,210.31,11.8872]
[1731286721629,188.330284,210.38,210.31,11.8872]
[1731286722029,159.8,210.43,210.32,41.2565]
[1731286722230,16.2951,210.64,210.43,26.114]
[1731286722231,14.94732992,210.56,210.43,26.114]
[1731286722431,18.99607,210.54,210.49,14.94732992]
[1731286722850,14.94732992,210.58,210.49,14.94732992]
[1731286723052,19.69572992,210.6,210.51,14.94732992]
[1731286723259,18.991578,210.6,210.53,14.94732992]
[1731286723441,4.94170503,210.63,210.57,14.94732992]
[1731286723442,159.8,210.63,210.57,14.94732992]
[1731286723645,10.0847047,210.65,210.57,19.69612992]
[1731286723948,25.0320347,210.65,210.57,19.69612992]
[1731286724759,23.776884,210.64,210.57,19.69612992]
[1731286725335,25.0320347,210.65,210.57,19.69612992]
[1731286725653,10.0847047,210.65,210.59,14.94732992]
[1731286725952,10.0847047,210.65,210.61,14.94732992]
[1731286726846,10.0847047,210.65,210.59,31.56712992]
[1731286727372,14.94732992,210.64,210.57,14.94732992]
[1731286727648,14.94732992,210.6,210.53,11.8743]
[1731286728245,14.94732992,210.6,210.53,31.57152992]
[1731286728246,23.776884,210.59,210.53,31.57152992]
[1731286729348,23.776884,210.57,210.5,4.7505]
[1731286729648,23.776884,210.55,210.48,31.57562992]
[1731286730153,23.776884,210.55,210.49,14.94732992]
[1731286731457,14.94732992,210.53,210.48,11.8774]
[1731286732043,14.94732992,210.5,210.45,4.7517]
[1731286732556,14.94732992,210.52,210.45,19.69902992]
[1731286732758,23.776884,210.51,210.45,19.69902992]
[1731286732961,38.72421392,210.51,210.45,4.7517]
[1731286733156,23.776884,210.51,210.45,19.69902992]
[1731286734841,14.94732992,210.5,210.43,37.69352992]
[1731286735138,198.52421392,210.51,210.44,14.94732992]
[1731286735605,183.576884,210.51,210.43,6.114]
[1731286735743,183.576884,210.51,210.37,16.6367]
[1731286735744,14.94732992,210.44,210.37,16.6367]
[1731286736066,14.94732992,210.43,210.37,11.8832]
[1731286736356,23.776884,210.43,210.37,26.83052992]
[1731286736536,23.776884,210.43,210.37,31.58402992]
[1731286736741,23.776884,210.43,210.37,11.8832]
[1731286736742,38.72421392,210.43,210.37,11.8832]
[1731286737754,38.72421392,210.43,210.37,16.6367]
[1731286737957,38.72421392,210.41,210.34,14.94732992]
[1731286738165,14.94732992,210.38,210.32,11.8863]
[1731286738346,14.94732992,210.39,210.32,31.58822992]
[1731286739357,38.72421392,210.38,210.32,11.8863]
[1731286739564,14.94732992,210.37,210.32,11.8863]
[1731286739738,23.776884,210.38,210.32,11.8863]
[1731286739739,38.72421392,210.38,210.32,11.8863]
[1731286739943,23.776884,210.38,210.32,11.8863]
[1731286740138,14.94732992,210.39,210.32,31.58822992]
[1731286740345,23.776884,210.43,210.37,14.94732992]
[1731286740544,23.8527,210.51,210.32,16.6409]
[1731286740545,159.8,210.44,210.4,14.94732992]
[1731286740843,164.5511,210.48,210.42,14.94732992]
[1731286741061,159.8,210.47,210.42,14.94732992]
[1731286741265,159.8,210.47,210.35,20.0]
[1731286741560,159.8,210.49,210.41,14.94732992]
[1731286741770,19.69792992,210.5,210.41,14.94732992]
[1731286741960,14.94732992,210.46,210.38,14.94732992]
[1731286742163,14.94732992,210.46,210.35,20.0]
[1731286742164,14.94732992,210.43,210.35,14.94732992]
[1731286742552,14.94732992,210.44,210.36,14.94732992]
[1731286742851,23.84452074,210.43,210.35,23.84452074]
[1731286743054,23.84452074,210.41,210.33,23.84452074]
[1731286743352,23.84452074,210.41,210.31,6.0436]
[1731286743353,23.776884,210.37,210.31,29.88812074]
[1731286743671,23.776884,210.37,210.31,34.64282074]
[1731286743860,23.776884,210.37,210.31,29.88812074]
[1731286744056,23.776884,210.37,210.31,6.0436]
[1731286744248,23.84452074,210.36,210.29,16.643]
[1731286745340,52.37510474,210.37,210.29,40.48752074]
[1731286745760,23.84452074,210.35,210.29,11.8879]
[1731286747445,52.37510474,210.37,210.29,35.73242074]
[1731286748162,23.776884,210.38,210.32,23.84452074]
[1731286749950,188.330284,210.38,210.32,23.84452074]
[1731286750351,188.330284,210.38,210.31,4.7548]
[1731286751060,188.330284,210.38,210.32,23.84452074]
[1731286752665,23.776884,210.36,210.29,11.8879]
[1731286752968,23.84452074,210.35,210.29,11.8879]
[1731286753361,159.8,210.35,210.29,11.8879]
[1731286753678,159.8,210.35,210.29,16.6432]
[1731286754360,159.8,210.35,210.31,23.84452074]
[1731286755250,159.8,210.35,210.33,23.84452074]
[1731286756668,159.8,210.35,210.32,4.7544]
[1731286759255,28.59762074,210.39,210.32,4.7544]
[1731286759774,23.776884,210.39,210.33,23.84452074]
[1731286761371,28.529984,210.39,210.33,23.84452074]
[1731286761871,23.776884,210.39,210.33,28.59892074]
[1731286762081,28.529984,210.39,210.33,28.59892074]
[1731286762960,159.8,210.45,210.37,14.90665027]
[1731286763165,159.8,210.47,210.43,14.90665027]
[1731286763464,159.8,210.49,210.43,14.90665027]
[1731286763864,19.65665027,210.53,210.45,14.90665027]
[1731286764072,159.8,210.52,210.47,14.90665027]
[1731286764853,159.8,210.52,210.42,16.6332]
[1731286764854,159.8,210.52,210.46,23.82017971]
[1731286765049,164.5503,210.52,210.46,23.82017971]
[1731286765268,159.8,210.52,210.46,28.57157971]
[1731286765470,159.8,210.52,210.48,23.82017971]
[1731286765671,159.8,210.55,210.5,23.82017971]
[1731286765875,23.82017971,210.59,210.5,23.82017971]
[1731286765876,159.8,210.58,210.5,23.82017971]
[1731286766261,159.8,210.58,210.54,23.82017971]
[1731286766767,164.5482,210.61,210.54,23.82017971]
[1731286766966,159.8,210.6,210.54,23.82017971]
[1731286767874,4.7482,210.61,210.54,23.82017971]
[1731286768060,159.8,210.62,210.54,28.56977971]
[1731286768268,159.8,210.64,210.58,23.82017971]
[1731286768467,159.8,210.64,210.62,23.82017971]
[1731286768665,10.0847047,210.65,210.6,23.82017971]
[1731286769665,10.0847047,210.65,210.6,28.56837971]
[1731286772170,10.0847047,210.65,210.58,35.69177971]
[1731286772379,23.82017971,210.64,210.58,11.8716]
[1731286772687,14.8320047,210.65,210.58,35.69177971]
[1731286773487,174.6320047,210.65,210.58,35.69177971]
[1731286773666,169.8847047,210.65,210.58,40.44047971]
[1731286774585,10.0847047,210.65,210.62,23.82017971]
[1731286775982,10.0847047,210.65,210.6,23.82017971]
[1731286778183,159.8,210.69,210.63,23.82017971]
[1731286778184,23.776884,210.69,210.63,23.82017971]
[1731286779172,4.93649003,210.7,210.63,23.82017971]
[1731286779380,4.93649003,210.7,210.63,28.56757971]
[1731286779760,4.93649003,210.7,210.65,23.82017971]
[1731286779961,23.82017971,210.75,210.67,23.82017971]
[1731286780385,4.7448,210.76,210.69,23.82017971]
[1731286780617,23.82017971,210.75,210.67,23.82017971]
[1731286780883,23.82017971,210.71,210.63,46.78147971]
[1731286781283,23.82017971,210.71,210.64,23.82017971]
[1731286782373,23.82017971,210.71,210.64,28.56747971]
[1731286783174,28.56587971,210.72,210.64,28.56747971]
[1731286784684,23.82017971,210.7,210.64,23.82017971]
[1731286785085,23.82017971,210.71,210.64,23.82017971]
[1731286785981,28.56597971,210.71,210.64,23.82017971]
[1731286786198,28.56597971,210.71,210.63,22.9615]
[1731286786688,28.56597971,210.71,210.63,46.78167971]
[1731286786994,14.86420615,210.69,210.63,18.2139]
[1731286788686,14.86420615,210.69,210.62,4.7478]
[1731286788687,14.86420615,210.67,210.59,19.61250615]
[1731286789581,14.86420615,210.67,210.59,31.48390615]
[1731286790993,19.61100615,210.67,210.59,31.48390615]
[1731286791194,14.86420615,210.65,210.59,11.8714]
[1731286791495,14.86420615,210.63,210.57,10.7979]
[1731286791997,14.86420615,210.65,210.57,25.66210615]
[1731286792389,19.61140615,210.65,210.57,25.66210615]
[1731286793482,19.61140615,210.65,210.57,37.53460615]
[1731286794191,14.86420615,210.63,210.57,6.0491]
[1731286794891,23.776884,210.64,210.57,37.53470615]
[1731286795093,19.61110615,210.67,210.59,14.86420615]
[1731286795292,23.776884,210.66,210.59,14.86420615]
[1731286795476,28.523984,210.66,210.59,14.86420615]
[1731286796496,188.323984,210.66,210.59,14.86420615]
[1731286796696,164.5471,210.66,210.59,19.61260615]
[1731286796891,4.7471,210.66,210.59,19.61260615]
[1731286798094,14.86420615,210.67,210.59,31.48400615]
[1731286798299,179.41020615,210.71,210.63,14.86420615]
[1731286798683,179.41020615,210.71,210.63,19.61170615]
[1731286799180,19.61020615,210.71,210.63,19.61170615]
[1731286799378,4.746,210.71,210.65,14.86420615]
[1731286799582,164.546,210.71,210.65,14.86420615]
[1731286800002,159.8,210.72,210.67,14.86420615]
[1731286800186,14.86420615,210.75,210.67,14.86420615]
[1731286800187,159.8,210.74,210.67,14.86420615]
[1731286800699,164.5452,210.74,210.67,19.61090615]
[1731286801198,159.8,210.74,210.67,19.61090615]
[1731286801400,4.7449,210.76,210.69,14.86420615]
[1731286802004,14.86420615,210.75,210.67,20.92090615]
[1731286802177,4.7449,210.76,210.63,30.08830615]
[1731286802178,14.86420615,210.7,210.63,30.08830615]
[1731286802377,14.86420615,210.73,210.65,14.86420615]
[1731286802592,14.86420615,210.72,210.65,19.61120615]
[1731286802794,159.8,210.75,210.69,14.86420615]
[1731286802986,19.60910615,210.76,210.69,14.86420615]
[1731286803392,14.86420615,210.75,210.67,14.86420615]
[1731286804190,14.86420615,210.75,210.68,14.86420615]
[1731286804504,19.60910615,210.76,210.68,14.86420615]
[1731286804902,19.60910615,210.76,210.68,19.61060615]
[1731286805400,14.86420615,210.74,210.68,14.86420615]
[1731286805613,14.86420615,210.72,210.65,11.868]
[1731286805788,14.86420615,210.72,210.65,16.6152]
[1731286805983,23.776884,210.75,210.65,16.6152]
[1731286805984,14.86420615,210.73,210.66,14.86420615]
[1731286806197,38.64109015,210.75,210.67,14.86420615]
[1731286806396,23.776884,210.75,210.68,14.86420615]
[1731286806611,198.44109015,210.75,210.67,14.86420615]
[1731286806986,159.8,210.75,210.66,16.6143]
[1731286807303,159.8,210.75,210.7,14.86420615]
[1731286807895,164.5449,210.75,210.7,14.86420615]
[1731286808092,164.5449,210.75,210.68,14.86420615]
[1731286808299,14.86420615,210.74,210.66,31.47850615]
[1731286808494,164.5449,210.75,210.68,14.86420615]
[1731286808693,179.40910615,210.75,210.68,14.86420615]
[1731286809611,14.86420615,210.71,210.64,4.7474]
[1731286810186,14.86420615,210.71,210.65,14.86420615]
[1731286810632,159.8,210.73,210.68,14.86420615]
[1731286811512,164.5455,210.73,210.66,14.86420615]
[1731286812087,14.86420615,210.72,210.64,31.48010615]
[1731286812491,14.86420615,210.72,210.64,16.6159]
[1731286812712,14.86420615,210.72,210.58,16.4275]
[1731286812713,14.86420615,210.68,210.58,31.19170615]
[1731286812912,14.86420615,210.62,210.56,4.7492]
[1731286813208,14.86420615,210.62,210.56,16.6222]
[1731286813389,14.86420615,210.64,210.56,31.48640615]
[1731286813789,4.7474,210.65,210.58,14.86420615]
[1731286814207,14.86420615,210.64,210.58,14.86420615]
[1731286814998,14.86420615,210.66,210.58,14.86420615]
[1731286815312,14.86420615,210.66,210.57,31.48550615]